fUSD/lending_fUSD_20250818
["ID","MTS","AMOUNT","RATE_DAILY","PERIOD"]
[380026136,1755483052338,-1053.8,0.00013698,2]
[380026137,1755483052349,-400.0,0.00013698,2]
[380026138,1755483052358,-400.0,0.00013698,2]
[380026139,1755483052367,-400.0,0.00013698,2]
[380026140,1755483052376,-647.03,0.00013698,2]
[380026141,1755483052386,-400.0,0.00013698,2]
[380026142,1755483052395,-400.0,0.00013698,2]
[380026143,1755483052404,-400.4230745,0.00013698,2]
[380026144,1755483052413,-400.38939372,0.00013698,2]
[380026145,1755483052423,-413.87,0.00013698,2]
[380026146,1755483052432,-461.29,0.00013698,2]
[380026147,1755483052441,-400.0,0.00013698,2]
[380026148,1755483052451,-400.0,0.00013698,2]
[380026149,1755483052460,-840.05,0.00013698,2]
[380026150,1755483052469,-400.0,0.00013698,2]
[380026151,1755483052479,-1879.7,0.00013698,2]
[380026152,1755483052488,-409.30261544,0.00013698,2]
[380026153,1755483052497,-262.26243607,0.00013698,2]
[380026154,1755483052506,-2177.88,0.00013698,2]
[380026155,1755483052516,-400.0,0.00013698,2]
[380026156,1755483052524,-400.0,0.00013698,2]
[380026157,1755483052536,-400.0,0.00013698,2]
[380026158,1755483052546,-849.34,0.00013698,2]
[380026159,1755483052555,-400.0,0.00013698,2]
[380026160,1755483052565,-400.0,0.00013698,2]
[380026161,1755483052575,-400.0,0.00013698,2]
[380026162,1755483052584,-842.13,0.00013698,2]
[380026163,1755483052594,-564.02,0.00013698,2]
[380026164,1755483052603,-400.0,0.00013698,2]
[380026165,1755483052612,-400.0,0.00013698,2]
[380026166,1755483052621,-400.0,0.00013698,2]
[380026167,1755483052630,-400.0,0.00013698,2]
[380026168,1755483052640,-400.0,0.00013698,2]
[380026169,1755483052649,-400.0,0.00013698,2]
[380026170,1755483052659,-642.5,0.00013698,2]
[380026171,1755483052669,-400.0,0.00013698,2]
[380026172,1755483052678,-400.0,0.00013698,2]
[380026173,1755483052687,-400.0,0.00013698,2]
[380026174,1755483052696,-400.0,0.00013698,2]
[380026175,1755483052705,-400.0,0.00013698,2]
[380026176,1755483052714,-400.0,0.00013698,2]
[380026177,1755483052724,-400.0,0.00013698,2]
[380026178,1755483052733,-729.94,0.00013698,2]
[380026179,1755483052742,-169.24177047,0.00013698,2]
[380026180,1755483052752,-1127.83,0.00013698,2]
[380026181,1755483052762,-400.0,0.00013698,2]
[380026182,1755483052772,-400.0,0.00013698,2]
[380026183,1755483052784,-451.5,0.00013698,2]
[380026184,1755483052794,-199.28561783,0.00013698,2]
[380026185,1755483052803,-400.0,0.00013698,2]
[380026186,1755483052812,-400.0,0.00013698,2]
[380026187,1755483052822,-401.50177727,0.00013698,2]
[380026188,1755483052831,-363.42131767,0.00013698,2]
[380026189,1755483052841,-400.0,0.00013698,2]
[380026190,1755483052852,-466.65,0.00013698,2]
[380026191,1755483052862,-500.0,0.00013698,2]
[380026192,1755483052871,-500.0,0.00013698,2]
[380026193,1755483052880,-952.05,0.00013698,2]
[380026194,1755483052889,-500.0,0.00013698,2]
[380026195,1755483052899,-500.0,0.00013698,2]
[380026196,1755483052908,-500.0,0.00013698,2]
[380026197,1755483052918,-1530.21,0.00013698,2]
[380026198,1755483052927,-500.0,0.00013698,2]
[380026199,1755483052937,-400.0,0.00013698,2]
[380026200,1755483052947,-500.0,0.00013698,2]
[380026201,1755483052956,-230.90320559,0.00013698,2]
[380026202,1755483052967,-400.0,0.00013698,2]
[380026203,1755483052977,-400.0,0.00013698,2]
[380026204,1755483052986,-400.0,0.00013698,2]
[380026205,1755483052995,-400.0,0.00013698,2]
[380026206,1755483053005,-721.77,0.00013698,2]
[380026207,1755483053014,-472.9,0.00013698,2]
[380026208,1755483053024,-400.0,0.00013698,2]
[380026209,1755483053035,-1372.81,0.00013698,2]
[380026210,1755483053044,-2367.73,0.00013698,2]
[380026211,1755483053054,-401.27335483,0.00013698,2]
[380026212,1755483053064,-400.0,0.00013698,2]
[380026213,1755483053074,-659.09,0.00013698,2]
[380026214,1755483053083,-400.0,0.00013698,2]
[380026215,1755483053093,-659.09,0.00013698,2]
[380026216,1755483053103,-400.0,0.00013698,2]
[380026217,1755483053112,-659.09,0.00013698,2]
[380026218,1755483053122,-400.0,0.00013698,2]
[380026219,1755483053131,-659.09,0.00013698,2]
[380026220,1755483053141,-659.09,0.00013698,2]
[380026221,1755483053150,-659.09,0.00013698,2]
[380026222,1755483053159,-659.09,0.00013698,2]
[380026223,1755483053169,-659.09,0.00013698,2]
[380026224,1755483053178,-659.09,0.00013698,2]
[380026225,1755483053187,-659.09,0.00013698,2]
[380026226,1755483053196,-659.09,0.00013698,2]
[380026227,1755483053206,-1816.26,0.00013698,2]
[380026228,1755483053215,-659.09,0.00013698,2]
[380026229,1755483053224,-659.09,0.00013698,2]
[380026230,1755483053234,-400.0,0.00013698,2]
[380026231,1755483053242,-659.09,0.00013698,2]
[380026232,1755483053252,-659.09,0.00013698,2]
[380026233,1755483053265,-659.09,0.00013698,2]
[380026234,1755483053275,-659.09,0.00013698,2]
[380026235,1755483053285,-659.09,0.00013698,2]
[380026236,1755483053294,-659.09,0.00013698,2]
[380026237,1755483053304,-659.09,0.00013698,2]
[380026238,1755483053314,-659.09,0.00013698,2]
[380026239,1755483053323,-400.0,0.00013698,2]
[380026240,1755483053333,-659.09,0.00013698,2]
[380026241,1755483053348,-659.09,0.00013698,2]
[380026242,1755483053358,-400.0,0.00013698,2]
[380026243,1755483053369,-659.14009216,0.00013698,2]
[380026244,1755483053384,-400.0,0.00013698,2]
[380026245,1755483053400,-400.0,0.00013698,2]
[380026246,1755483053409,-400.0,0.00013698,2]
[380026247,1755483053419,-400.0,0.00013698,2]
[380026248,1755483053428,-400.0,0.00013698,2]
[380026249,1755483053437,-400.0,0.00013698,2]
[380026250,1755483053447,-500.0,0.00013698,2]
[380026251,1755483053456,-563.34,0.00013698,2]
[380026252,1755483053465,-400.0,0.00013698,2]
[380026253,1755483053475,-500.0,0.00013698,2]
[380026254,1755483053485,-400.0,0.00013698,2]
[380026255,1755483053495,-400.0,0.00013698,2]
[380026256,1755483053504,-500.0,0.00013698,2]
[380026257,1755483053513,-500.0,0.00013698,2]
[380026258,1755483053523,-400.0,0.00013698,2]
[380026259,1755483053534,-500.0,0.00013698,2]
[380026260,1755483053543,-503.70305064,0.00013698,2]
[380026261,1755483053553,-400.0,0.00013698,2]
[380026262,1755483053562,-424.81,0.00013698,2]
[380026263,1755483053572,-401.16731924,0.00013698,2]
[380026264,1755483053582,-400.0,0.00013698,2]
[380026265,1755483053591,-400.0,0.00013698,2]
[380026266,1755483053601,-1135.01,0.00013698,2]
[380026267,1755483053610,-400.0,0.00013698,2]
[380026268,1755483053619,-1352.03,0.00013698,2]
[380026269,1755483053628,-400.0,0.00013698,2]
[380026270,1755483053637,-965.45,0.00013698,2]
[380026271,1755483053647,-400.0,0.00013698,2]
[380026272,1755483053656,-400.0,0.00013698,2]
[380026273,1755483053665,-398.15916427,0.00013698,2]
[380026274,1755483053675,-400.0,0.00013698,2]
[380026275,1755483053685,-877.8,0.00013698,2]
[380026276,1755483053695,-401.67952542,0.00013698,2]
[380026277,1755483053704,-400.0,0.00013698,2]
[380026278,1755483053713,-400.0,0.00013698,2]
[380026279,1755483053723,-400.0,0.00013698,2]
[380026280,1755483053734,-1561.36,0.00013698,2]
[380026281,1755483053743,-525.9,0.00013698,2]
[380026282,1755483053752,-880.92,0.00013698,2]
[380026283,1755483053761,-400.0,0.00013698,2]
[380026284,1755483053771,-400.0,0.00013698,2]
[380026285,1755483053782,-400.0,0.00013698,2]
[380026286,1755483053792,-400.0,0.00013698,2]
[380026287,1755483053802,-400.0,0.00013698,2]
[380026288,1755483053811,-400.0,0.00013698,2]
[380026289,1755483053820,-400.0,0.00013698,2]
[380026290,1755483053829,-400.0,0.00013698,2]
[380026291,1755483053839,-697.85,0.00013698,2]
[380026292,1755483053848,-400.0,0.00013698,2]
[380026293,1755483053857,-1722.87,0.00013698,2]
[380026294,1755483053867,-591.53,0.00013698,2]
[380026295,1755483053876,-401.46938008,0.00013698,2]
[380026296,1755483053886,-400.0,0.00013698,2]
[380026297,1755483053895,-400.0,0.00013698,2]
[380026298,1755483053904,-400.0,0.00013698,2]
[380026299,1755483053914,-651.11,0.00013698,2]
[380026300,1755483053924,-1186.36,0.00013698,2]
[380026301,1755483053933,-166.251042,0.00013698,2]
[380026302,1755483053942,-400.0,0.00013698,2]
[380026303,1755483053951,-400.0,0.00013698,2]
[380026304,1755483053960,-400.0,0.00013698,2]
[380026305,1755483053970,-400.0,0.00013698,2]
[380026306,1755483053979,-400.0,0.00013698,2]
[380026307,1755483053987,-400.0,0.00013698,2]
[380026308,1755483053995,-307.82284671,0.00013698,2]
[380026309,1755483054004,-166.77918,0.00013698,2]
[380026310,1755483054013,-400.0,0.00013698,2]
[380026311,1755483054021,-400.0,0.00013698,2]
[380026312,1755483054029,-784.48,0.00013698,2]
[380026313,1755483054039,-400.0,0.00013698,2]
[380026314,1755483054047,-400.0,0.00013698,2]
[380026315,1755483054056,-400.0,0.00013698,2]
[380026316,1755483054066,-867.35,0.00013698,2]
[380026317,1755483054076,-500.0,0.00013698,2]
[380026318,1755483054086,-500.0,0.00013698,2]
[380026319,1755483054096,-400.0,0.00013698,2]
[380026320,1755483054105,-500.0,0.00013698,2]
[380026321,1755483054114,-500.0,0.00013698,2]
[380026322,1755483054123,-400.0,0.00013698,2]
[380026323,1755483054133,-500.0,0.00013698,2]
[380026324,1755483054143,-500.0,0.00013698,2]
[380026325,1755483054153,-400.0,0.00013698,2]
[380026326,1755483054163,-500.0,0.00013698,2]
[380026327,1755483054174,-400.0,0.00013698,2]
[380026328,1755483054183,-400.0,0.00013698,2]
[380026329,1755483054191,-500.0,0.00013698,2]
[380026330,1755483054200,-400.0,0.00013698,2]
[380026331,1755483054572,-402.13375275,0.00013698,2]
[380026332,1755483054582,-500.0,0.00013698,2]
[380026333,1755483054592,-500.0,0.00013698,2]
[380026334,1755483054601,-400.0,0.00013698,2]
[380026335,1755483054610,-500.0,0.00013698,2]
[380026336,1755483054619,-400.0,0.00013698,2]
[380026337,1755483054629,-500.0,0.00013698,2]
[380026338,1755483054638,-500.0,0.00013698,2]
[380026339,1755483054648,-500.0,0.00013698,2]
[380026340,1755483054658,-500.0,0.00013698,2]
[380026341,1755483054669,-500.0,0.00013698,2]
[380026342,1755483054678,-500.0,0.00013698,2]
[380026343,1755483054687,-400.0,0.00013698,2]
[380026344,1755483054697,-400.0,0.00013698,2]
[380026345,1755483054707,-500.0,0.00013698,2]
[380026346,1755483054716,-707.31,0.00013698,2]
[380026347,1755483054725,-500.0,0.00013698,2]
[380026348,1755483054735,-500.0,0.00013698,2]
[380026349,1755483054744,-500.0,0.00013698,2]
[380026350,1755483054753,-460.07,0.00013698,2]
[380026351,1755483054762,-400.0,0.00013698,2]
[380026352,1755483054771,-400.0,0.00013698,2]
[380026353,1755483054782,-327.18270766,0.00013698,2]
[380026354,1755483054792,-400.0,0.00013698,2]
[380026355,1755483054801,-1187.35,0.00013698,2]
[380026356,1755483054811,-400.0,0.00013698,2]
[380026357,1755483054820,-500.0,0.00013698,2]
[380026358,1755483054829,-1521.76,0.00013698,2]
[380026359,1755483054838,-401.12720048,0.00013698,2]
[380026360,1755483054848,-400.0,0.00013698,2]
[380026361,1755483054857,-400.0,0.00013698,2]
[380026362,1755483054866,-400.0,0.00013698,2]
[380026363,1755483054876,-400.0,0.00013698,2]
[380026364,1755483054885,-400.0,0.00013698,2]
[380026365,1755483054895,-400.0,0.00013698,2]
[380026366,1755483054905,-3661.46,0.00013698,2]
[380026367,1755483054914,-400.0,0.00013698,2]
[380026368,1755483054924,-400.0,0.00013698,2]
[380026369,1755483054933,-400.0,0.00013698,2]
[380026370,1755483054943,-400.0,0.00013698,2]
[380026371,1755483054953,-400.0,0.00013698,2]
[380026372,1755483054963,-400.0,0.00013698,2]
[380026373,1755483054973,-400.0,0.00013698,2]
[380026374,1755483054982,-2155.01,0.00013698,2]
[380026375,1755483054992,-400.0,0.00013698,2]
[380026376,1755483055001,-400.0,0.00013698,2]
[380026377,1755483055011,-507.9,0.00013698,2]
[380026378,1755483055020,-528.38,0.00013698,2]
[380026379,1755483055032,-400.0,0.00013698,2]
[380026380,1755483055042,-400.0,0.00013698,2]
[380026381,1755483055055,-2566.4,0.00013698,2]
[380026382,1755483055065,-584.48,0.00013698,2]
[380026383,1755483055076,-400.0,0.00013698,2]
[380026384,1755483055086,-400.0,0.00013698,2]
[380026385,1755483055096,-400.0,0.00013698,2]
[380026386,1755483055105,-400.0,0.00013698,2]
[380026387,1755483055115,-400.0,0.00013698,2]
[380026388,1755483055125,-400.0,0.00013698,2]
[380026389,1755483055134,-400.0,0.00013698,2]
[380026390,1755483055143,-1128.2,0.00013698,2]
[380026391,1755483055153,-635.06,0.00013698,2]
[380026392,1755483055162,-400.0,0.00013698,2]
[380026393,1755483055172,-400.0,0.00013698,2]
[380026394,1755483055182,-400.0,0.00013698,2]
[380026395,1755483055191,-908.27,0.00013698,2]
[380026396,1755483055201,-649.19,0.00013698,2]
[380026397,1755483055210,-263.36505971,0.00013698,2]
[380026398,1755483055220,-400.0,0.00013698,2]
[380026399,1755483055230,-1096.54,0.00013698,2]
[380026400,1755483055242,-987.06,0.00013698,2]
[380026401,1755483055255,-400.0,0.00013698,2]
[380026402,1755483055267,-1165.83,0.00013698,2]
[380026403,1755483055277,-400.0,0.00013698,2]
[380026404,1755483055290,-605.16,0.00013698,2]
[380026405,1755483055300,-2375.63,0.00013698,2]
[380026406,1755483055310,-400.0,0.00013698,2]
[380026407,1755483055319,-1045.67,0.00013698,2]
[380026408,1755483055330,-3670.22,0.00013698,2]
[380026409,1755483055340,-1471.46,0.00013698,2]
[380026410,1755483055349,-615.37,0.00013698,2]
[380026411,1755483055358,-400.0,0.00013698,2]
[380026412,1755483055369,-400.0,0.00013698,2]
[380026413,1755483055379,-736.88,0.00013698,2]
[380026414,1755483055389,-400.0,0.00013698,2]
[380026415,1755483055398,-463.54,0.00013698,2]
[380026416,1755483055408,-400.0,0.00013698,2]
[380026417,1755483055418,-400.0,0.00013698,2]
[380026418,1755483055430,-1680.44,0.00013698,2]
[380026419,1755483055442,-400.0,0.00013698,2]
[380026420,1755483055453,-400.0,0.00013698,2]
[380026421,1755483055464,-1338.4,0.00013698,2]
[380026422,1755483055477,-1856.88,0.00013698,2]
[380026423,1755483055486,-1514.2,0.00013698,2]
[380026424,1755483055495,-850.55,0.00013698,2]
[380026425,1755483055504,-1472.69,0.00013698,2]
[380026426,1755483055514,-414.47278373,0.00013698,2]
[380026427,1755483055523,-400.0,0.00013698,2]
[380026428,1755483055532,-400.0,0.00013698,2]
[380026429,1755483055542,-846.11,0.00013698,2]
[380026430,1755483055551,-1270.27,0.00013698,2]
[380026431,1755483055560,-504.72420161,0.00013698,2]
[380026432,1755483055569,-400.0,0.00013698,2]
[380026433,1755483055578,-400.0,0.00013698,2]
[380026434,1755483055587,-400.0,0.00013698,2]
[380026435,1755483055596,-400.0,0.00013698,2]
[380026436,1755483055605,-400.0,0.00013698,2]
[380026437,1755483055614,-1906.51,0.00013698,2]
[380026438,1755483055623,-400.0,0.00013698,2]
[380026439,1755483055633,-400.0,0.00013698,2]
[380026440,1755483055642,-1359.76,0.00013698,2]
[380026441,1755483055654,-397.84022293,0.00013698,2]
[380026442,1755483055666,-401.08377179,0.00013698,2]
[380026443,1755483055677,-451.51,0.00013698,2]
[380026444,1755483055686,-400.0,0.00013698,2]
[380026445,1755483055696,-400.0,0.00013698,2]
[380026446,1755483055705,-401.25830184,0.00013698,2]
[380026447,1755483055715,-400.0,0.00013698,2]
[380026448,1755483055724,-400.0,0.00013698,2]
[380026449,1755483055733,-518.39,0.00013698,2]
[380026450,1755483055742,-698.97,0.00013698,2]
[380026451,1755483055752,-400.0,0.00013698,2]
[380026452,1755483055761,-367.02793991,0.00013698,2]
[380026453,1755483055770,-400.0,0.00013698,2]
[380026454,1755483055780,-947.82,0.00013698,2]
[380026455,1755483055792,-400.0,0.00013698,2]
[380026456,1755483055802,-400.0,0.00013698,2]
[380026457,1755483055812,-400.0,0.00013698,2]
[380026458,1755483055822,-506.11,0.00013698,2]
[380026459,1755483055831,-400.0,0.00013698,2]
[380026460,1755483055841,-400.0,0.00013698,2]
[380026461,1755483055852,-400.0,0.00013698,2]
[380026462,1755483055862,-2237.23,0.00013698,2]
[380026463,1755483055872,-401.03141559,0.00013698,2]
[380026464,1755483055882,-3795.72,0.00013698,2]
[380026465,1755483055891,-1484.49,0.00013698,2]
[380026466,1755483055900,-850.04,0.00013698,2]
[380026467,1755483055910,-400.0,0.00013698,2]
[380026468,1755483055920,-400.0,0.00013698,2]
[380026469,1755483055929,-850.04,0.00013698,2]
[380026470,1755483055939,-400.0,0.00013698,2]
[380026471,1755483055948,-850.04,0.00013698,2]
[380026472,1755483055958,-419.69,0.00013698,2]
[380026473,1755483055967,-850.04,0.00013698,2]
[380026474,1755483055978,-850.04,0.00013698,2]
[380026475,1755483055987,-850.04,0.00013698,2]
[380026476,1755483055997,-850.04,0.00013698,2]
[380026477,1755483056007,-850.04,0.00013698,2]
[380026478,1755483056017,-850.04,0.00013698,2]
[380026479,1755483056027,-850.04,0.00013698,2]
[380026480,1755483056039,-850.04,0.00013698,2]
[380026481,1755483056048,-400.0,0.00013698,2]
[380026482,1755483056058,-402.10421651,0.00013698,2]
[380026483,1755483056068,-850.04,0.00013698,2]
[380026484,1755483056078,-400.0,0.00013698,2]
[380026485,1755483056088,-850.04,0.00013698,2]
[380026486,1755483056097,-534.77,0.00013698,2]
[380026487,1755483056107,-400.0,0.00013698,2]
[380026488,1755483056116,-850.04,0.00013698,2]
[380026489,1755483056126,-400.0,0.00013698,2]
[380026490,1755483056135,-403.47741603,0.00013698,2]
[380026491,1755483056146,-850.04,0.00013698,2]
[380026492,1755483056155,-850.04,0.00013698,2]
[380026493,1755483056165,-2103.64,0.00013698,2]
[380026494,1755483056175,-850.04,0.00013698,2]
[380026495,1755483056185,-400.0,0.00013698,2]
[380026496,1755483056194,-850.04,0.00013698,2]
[380026497,1755483056204,-850.04,0.00013698,2]
[380026498,1755483056214,-2155.14,0.00013698,2]
[380026499,1755483056223,-850.04,0.00013698,2]
[380026500,1755483056232,-850.04,0.00013698,2]
[380026501,1755483056243,-850.04,0.00013698,2]
[380026502,1755483056255,-400.0,0.00013698,2]
[380026503,1755483056267,-1232.14,0.00013698,2]
[380026504,1755483056276,-850.04,0.00013698,2]
[380026505,1755483056288,-850.09916102,0.00013698,2]
[380026506,1755483056299,-400.0,0.00013698,2]
[380026507,1755483056308,-400.0,0.00013698,2]
[380026508,1755483056318,-601.31,0.00013698,2]
[380026509,1755483056327,-400.0,0.00013698,2]
[380026510,1755483056339,-1715.5,0.00013698,2]
[380026511,1755483056349,-400.0,0.00013698,2]
[380026512,1755483056359,-400.0,0.00013698,2]
[380026513,1755483056369,-400.0,0.00013698,2]
[380026514,1755483056380,-400.0,0.00013698,2]
[380026515,1755483056389,-940.59,0.00013698,2]
[380026516,1755483056400,-400.0,0.00013698,2]
[380026517,1755483056410,-400.0,0.00013698,2]
[380026518,1755483056419,-400.0,0.00013698,2]
[380026519,1755483056428,-400.0,0.00013698,2]
[380026520,1755483056438,-400.0,0.00013698,2]
[380026521,1755483056447,-3474.46,0.00013698,2]
[380026522,1755483056456,-400.0,0.00013698,2]
[380026523,1755483056467,-400.0,0.00013698,2]
[380026524,1755483056478,-400.0,0.00013698,2]
[380026525,1755483056488,-400.0,0.00013698,2]
[380026526,1755483056497,-400.0,0.00013698,2]
[380026527,1755483056507,-400.0,0.00013698,2]
[380026528,1755483056517,-2900.17,0.00013698,2]
[380026529,1755483056527,-992.36,0.00013698,2]
[380026530,1755483056538,-4034.19,0.00013698,2]
[380026531,1755483056547,-542.93,0.00013698,2]
[380026532,1755483056557,-1395.46,0.00013698,2]
[380026533,1755483056566,-603.27,0.00013698,2]
[380026534,1755483056575,-400.0,0.00013698,2]
[380026535,1755483056585,-400.0,0.00013698,2]
[380026536,1755483056594,-535.86009475,0.00013698,2]
[380026537,1755483056604,-400.0,0.00013698,2]
[380026538,1755483056613,-400.0,0.00013698,2]
[380026539,1755483056622,-400.0,0.00013698,2]
[380026540,1755483056631,-400.0,0.00013698,2]
[380026541,1755483056640,-400.0,0.00013698,2]
[380026542,1755483056650,-400.0,0.00013698,2]
[380026543,1755483056659,-441.47,0.00013698,2]
[380026544,1755483056668,-400.0,0.00013698,2]
[380026545,1755483056678,-400.0,0.00013698,2]
[380026546,1755483056687,-1156.34,0.00013698,2]
[380026547,1755483056698,-388.0,0.00013698,2]
[380026548,1755483056708,-400.0,0.00013698,2]
[380026549,1755483056717,-250.0,0.00013698,2]
[380026550,1755483056727,-400.0,0.00013698,2]
[380026551,1755483056736,-2167.81,0.00013698,2]
[380026552,1755483056745,-449.32,0.00013698,2]
[380026553,1755483056755,-3245.73,0.00013698,2]
[380026554,1755483056766,-400.0,0.00013698,2]
[380026555,1755483056776,-400.0,0.00013698,2]
[380026556,1755483056787,-400.0,0.00013698,2]
[380026557,1755483056796,-1146.15,0.00013698,2]
[380026558,1755483056805,-400.0,0.00013698,2]
[380026559,1755483056814,-400.0,0.00013698,2]
[380026560,1755483056823,-400.0,0.00013698,2]
[380026561,1755483056833,-1292.19,0.00013698,2]
[380026562,1755483056842,-626.96,0.00013698,2]
[380026563,1755483056852,-400.0,0.00013698,2]
[380026564,1755483056861,-400.0,0.00013698,2]
[380026565,1755483056870,-400.0,0.00013698,2]
[380026566,1755483056879,-400.0,0.00013698,2]
[380026567,1755483056889,-400.0,0.00013698,2]
[380026568,1755483056898,-477.9144268,0.00013698,2]
[380026569,1755483056907,-400.0,0.00013698,2]
[380026570,1755483056917,-400.0,0.00013698,2]
[380026571,1755483057037,-946.03,0.00013698,2]
[380026572,1755483057047,-400.0,0.00013698,2]
[380026573,1755483057056,-467.37,0.00013698,2]
[380026574,1755483057065,-400.0,0.00013698,2]
[380026575,1755483057075,-593.45,0.00013698,2]
[380026576,1755483057084,-400.0,0.00013698,2]
[380026577,1755483057094,-2190.26,0.00013698,2]
[380026578,1755483057103,-400.0,0.00013698,2]
[380026579,1755483057112,-400.0,0.00013698,2]
[380026580,1755483057122,-683.51,0.00013698,2]
[380026581,1755483057131,-400.0,0.00013698,2]
[380026582,1755483057140,-400.0,0.00013698,2]
[380026583,1755483057150,-1335.51,0.00013698,2]
[380026584,1755483057159,-3696.87,0.00013698,2]
[380026585,1755483057171,-1190.38,0.00013698,2]
[380026586,1755483057181,-2579.24,0.00013698,2]
[380026587,1755483057190,-400.0,0.00013698,2]
[380026588,1755483057199,-400.0,0.00013698,2]
[380026589,1755483057208,-3600.44,0.00013698,2]
[380026590,1755483057218,-400.0,0.00013698,2]
[380026591,1755483057227,-400.0,0.00013698,2]
[380026592,1755483057239,-400.0,0.00013698,2]
[380026593,1755483057256,-401.08324446,0.00013698,2]
[380026594,1755483057270,-569.43,0.00013698,2]
[380026595,1755483057281,-400.0,0.00013698,2]
[380026596,1755483057296,-400.0,0.00013698,2]
[380026597,1755483057306,-400.0,0.00013698,2]
[380026598,1755483057315,-400.0,0.00013698,2]
[380026599,1755483057325,-793.22,0.00013698,2]
[380026600,1755483057334,-400.0,0.00013698,2]
[380026601,1755483057343,-400.0,0.00013698,2]
[380026602,1755483057353,-400.0,0.00013698,2]
[380026603,1755483057363,-400.0,0.00013698,2]
[380026604,1755483057372,-400.0,0.00013698,2]
[380026605,1755483057382,-970.39,0.00013698,2]
[380026606,1755483057391,-3838.67,0.00013698,2]
[380026607,1755483057400,-990.2,0.00013698,2]
[380026608,1755483057410,-852.94,0.00013698,2]
[380026609,1755483057419,-1329.32,0.00013698,2]
[380026610,1755483057428,-400.0,0.00013698,2]
[380026611,1755483057437,-400.0,0.00013698,2]
[380026612,1755483057447,-400.0,0.00013698,2]
[380026613,1755483057456,-2852.68,0.00013698,2]
[380026614,1755483057465,-400.0,0.00013698,2]
[380026615,1755483057474,-400.0,0.00013698,2]
[380026616,1755483057483,-400.0,0.00013698,2]
[380026617,1755483057492,-402.02681951,0.00013698,2]
[380026618,1755483057502,-400.0,0.00013698,2]
[380026619,1755483057511,-400.0,0.00013698,2]
[380026620,1755483057520,-400.0,0.00013698,2]
[380026621,1755483057528,-400.0,0.00013698,2]
[380026622,1755483057541,-400.0,0.00013698,2]
[380026623,1755483057550,-1766.11,0.00013698,2]
[380026624,1755483057559,-400.0,0.00013698,2]
[380026625,1755483057568,-400.0,0.00013698,2]
[380026626,1755483057577,-2178.13,0.00013698,2]
[380026627,1755483057587,-567.23,0.00013698,2]
[380026628,1755483057596,-402.66181787,0.00013698,2]
[380026629,1755483057605,-400.0,0.00013698,2]
[380026630,1755483057614,-400.0,0.00013698,2]
[380026631,1755483057623,-400.0,0.00013698,2]
[380026632,1755483057633,-408.45066045,0.00013698,2]
[380026633,1755483057643,-3073.15,0.00013698,2]
[380026634,1755483057652,-400.0,0.00013698,2]
[380026635,1755483057661,-400.0,0.00013698,2]